bitfinex/quotes_ETHUSD_20251122
["timestamp","ask_amount","ask_price","bid_price","bid_amount"]
[1763818448929,0.124,2720.9,2720.8,0.1031]
[1763818450643,0.7933,2720.9,2720.5,3.67578806]
[1763818450846,0.3126,2720.9,2720.5,0.90699264]
[1763818451047,0.124,2720.9,2720.5,0.90699264]
[1763818451248,0.124,2720.9,2720.8,0.1031]
[1763818452352,0.4964,2721.7,2720.8,0.2062]
[1763818452523,0.124,2721.6,2720.8,0.2062]
[1763818452724,0.124,2721.6,2721.0,0.90699264]
[1763818452942,0.6204,2721.6,2721.0,0.90699264]
[1763818453150,0.4807,2721.1,2720.7,0.90699264]
[1763818453357,0.4807,2721.0,2720.5,4.58278753]
[1763818453551,0.124,2720.9,2720.5,4.58278753]
[1763818453727,0.809,2720.9,2720.5,4.58278753]
[1763818454429,0.4807,2720.6,2720.5,0.90699264]
[1763818454636,0.124,2720.9,2720.8,0.1031]
[1763818454830,0.124,2720.9,2720.8,3.77848959]
[1763818455042,0.124,2720.9,2720.8,0.1031]
[1763818455236,0.124,2720.9,2720.7,3.67546254]
[1763818455551,0.4964,2721.3,2720.7,3.67546254]
[1763818455851,0.124,2721.2,2720.6,8.68083432]
[1763818456232,0.4964,2721.1,2720.5,4.58275125]
[1763818456658,0.4964,2721.1,2720.5,0.90699264]
[1763818456956,0.4964,2721.1,2720.5,4.58278328]
[1763818458124,0.4964,2721.1,2720.4,4.58385826]
[1763818458330,0.4964,2721.1,2720.4,0.90799264]
[1763818458931,0.4964,2721.1,2720.4,4.58389569]
[1763818460157,0.4964,2721.1,2720.4,8.2598257]
[1763818460463,0.4964,2721.1,2720.4,4.58389569]
[1763818460662,0.4964,2721.1,2720.4,0.90799264]
[1763818460974,0.4964,2721.1,2720.4,4.58387928]
[1763818461749,0.4964,2721.1,2720.4,4.58390785]
[1763818464546,0.4964,2721.1,2720.4,8.25983786]
[1763818465554,0.4964,2721.4,2720.6,5.00523813]
[1763818465760,0.124,2721.3,2720.7,0.03675524]
[1763818466075,0.124,2721.3,2720.7,1.01009264]
[1763818466378,0.002,2721.1,2721.0,5.00523813]
[1763818466674,0.002,2721.1,2721.0,6.11843077]
[1763818467645,0.002,2721.1,2721.0,9.69045021]
[1763818467845,0.002,2721.1,2721.0,1.01009264]
[1763818468074,0.002,2721.1,2721.0,4.68521208]
[1763818468574,0.002,2721.1,2721.0,9.79355021]
[1763818471939,0.002,2721.1,2721.0,13.60355021]
[1763818474089,0.002,2721.1,2721.0,13.50045021]
[1763818474431,0.002,2721.1,2721.0,13.60355021]
[1763818476614,0.002,2721.4,2721.1,5.18749664]
[1763818476802,0.002,2721.7,2721.3,5.29059664]
[1763818477113,0.002,2721.7,2721.6,6.01533077]
[1763818477613,0.002,2721.7,2721.6,9.79273999]
[1763818477912,0.002,2721.9,2721.7,0.90699264]
[1763818478118,0.002,2721.9,2721.8,0.1031]
[1763818478414,0.002,2721.9,2721.8,0.2062]
[1763818479481,0.002,2722.2,2721.8,0.2062]
[1763818479482,0.002,2722.2,2722.0,0.90699264]
[1763818479719,0.002,2722.2,2722.1,5.10833813]
[1763818480090,0.4625,2722.2,2722.1,5.00523813]
[1763818480292,0.9389,2722.2,2721.9,0.90699264]
[1763818480807,0.4625,2722.2,2721.9,0.90699264]
[1763818481120,0.002,2722.2,2721.9,0.90699264]
[1763818481319,0.002,2722.2,2722.1,5.10833813]
[1763818481630,0.002,2722.2,2722.1,8.78197245]
[1763818482004,0.002,2722.2,2722.1,8.88507245]
[1763818484282,0.002,2722.2,2722.1,9.79206509]
[1763818484501,0.002,2722.5,2722.2,4.78199264]
[1763818484842,0.002,2722.5,2722.4,0.1031]
[1763818485121,0.002,2722.5,2722.4,0.2062]
[1763818486235,0.002,2722.5,2722.4,0.1031]
[1763818486826,0.002,2722.5,2722.4,4.68332214]
[1763818487000,0.002,2722.5,2722.4,4.72005443]
[1763818487196,0.002,2722.5,2722.4,4.82315443]
[1763818487930,0.002,2722.5,2722.4,4.78642214]
[1763818488095,0.002,2722.7,2722.5,0.90699264]
[1763818488428,0.002,2722.8,2722.7,0.90699264]
[1763818488592,0.002,2722.8,2722.7,1.01009264]
[1763818488798,0.002,2723.0,2722.8,7.34537974]
[1763818488997,0.002,2723.0,2722.9,0.1031]
[1763818489207,0.002,2723.0,2722.9,0.2062]
[1763818489718,0.002,2723.0,2722.8,7.34537974]
[1763818490331,0.002,2723.0,2722.9,0.1031]
[1763818490627,0.002,2723.3,2722.9,0.1031]
[1763818490628,0.002,2723.3,2722.9,1.11319264]
[1763818490844,0.002,2723.3,2723.2,9.79058118]
[1763818491004,0.1987,2723.9,2723.2,20.80703241]
[1763818491204,0.1987,2723.9,2723.8,5.91223077]
[1763818491653,0.6592,2723.9,2723.8,5.91223077]
[1763818491951,1.1356,2723.9,2723.8,5.91223077]
[1763818492296,0.6592,2723.9,2723.8,5.91223077]
[1763818493138,0.6592,2723.9,2723.8,9.58357227]
[1763818493344,0.6592,2723.9,2723.8,5.91223077]
[1763818493642,1.1356,2723.9,2723.8,9.58357227]
[1763818494002,0.002,2723.9,2723.8,9.58357227]
[1763818494196,0.002,2723.9,2723.8,9.68667227]
[1763818494626,0.002,2723.9,2723.8,9.78977227]
[1763818494897,0.002,2724.0,2723.9,0.90699264]
[1763818495125,0.002,2724.2,2724.1,0.90699264]
[1763818495323,0.002,2724.2,2724.1,1.01009264]
[1763818496254,0.002,2724.2,2724.1,0.90699264]
[1763818496255,0.9389,2724.2,2724.1,0.90699264]
[1763818496616,0.9389,2724.2,2723.9,3.67110174]
[1763818496952,0.4764,2724.1,2724.0,0.90699264]
[1763818497254,0.4764,2724.1,2724.0,4.57806459]
[1763818497453,0.9369,2724.1,2724.0,4.57806459]
[1763818498011,0.9369,2724.1,2724.0,0.90699264]
[1763818498339,0.9369,2724.1,2723.9,4.57819936]
[1763818498540,0.002,2724.2,2723.9,0.90699264]
[1763818498541,0.4605,2724.0,2723.9,0.90699264]
[1763818498914,0.9369,2724.0,2723.9,0.90699264]
[1763818499225,0.4605,2724.0,2723.9,4.57819936]
[1763818500356,0.002,2724.2,2723.9,8.35250608]
[1763818501316,0.4605,2724.0,2723.9,4.57819936]
[1763818501862,0.9369,2724.0,2723.9,4.57819936]
[1763818502056,0.002,2724.2,2723.9,8.24940608]
[1763818502239,0.002,2724.0,2723.9,4.57819936]
[1763818502650,0.002,2724.0,2723.9,4.68129936]
[1763818503479,0.4625,2724.0,2723.9,4.57819936]
[1763818503777,0.9389,2724.0,2723.9,4.57819936]
[1763818504573,0.4625,2724.0,2723.9,4.57819936]
[1763818505078,0.002,2724.0,2723.9,4.57819936]
[1763818505649,0.002,2724.2,2723.9,12.36731814]
[1763818505853,0.002,2724.5,2724.3,0.1031]
[1763818506054,0.186,2725.0,2724.5,0.90699264]
[1763818506055,0.002,2725.0,2724.5,0.90699264]
[1763818506253,0.002,2725.0,2724.5,1.01009264]
[1763818506449,0.002,2725.0,2724.6,0.2062]
[1763818506649,0.002,2725.0,2724.9,6.01533077]
[1763818507189,0.9537,2725.0,2724.9,0.90699264]
[1763818507682,0.9537,2725.0,2724.9,4.57685208]
[1763818508258,0.9537,2725.0,2724.9,0.90699264]
[1763818508878,0.9537,2725.0,2724.2,5.00523813]
[1763818509082,0.9537,2725.0,2723.9,7.34241344]
[1763818509083,0.6954,2724.3,2723.9,7.34241344]
[1763818509285,0.7733,2724.9,2724.2,5.00523813]
[1763818509465,0.1965,2724.9,2724.3,0.90699264]
[1763818509666,0.002,2725.0,2724.8,3.66999412]
[1763818509863,0.002,2725.0,2724.8,7.33998824]
[1763818510160,0.002,2725.0,2724.8,0.90699264]
[1763818510161,0.6954,2724.9,2724.8,0.90699264]
[1763818510364,0.6954,2724.9,2724.4,0.90699264]
[1763818510570,0.4989,2724.5,2724.3,7.34120893]
[1763818510766,0.4989,2724.4,2724.3,0.90699264]
[1763818510974,0.9517,2724.4,2724.3,0.90699264]
[1763818511297,0.9517,2724.4,2724.0,3.67102664]
[1763818511485,0.4989,2724.1,2724.0,3.67102664]
[1763818511693,0.4989,2724.1,2724.0,4.57801928]
[1763818511878,0.4528,2724.3,2724.1,0.90699264]
[1763818512286,0.4989,2724.2,2724.1,0.90699264]
[1763818512487,0.4989,2724.2,2724.0,7.34209859]
[1763818512882,0.4989,2724.2,2724.1,5.62266619]
[1763818514399,0.9517,2724.2,2724.1,5.62266619]
[1763818514778,0.9517,2724.2,2724.1,0.90699264]
[1763818515100,0.9517,2724.2,2723.7,8.38713488]
[1763818515278,0.4528,2724.1,2723.8,0.90699264]
[1763818515479,0.6954,2723.8,2723.3,0.001]
[1763818515692,0.4989,2723.4,2723.3,0.001]
[1763818516200,0.9517,2723.4,2723.3,0.001]
[1763818516406,0.124,2723.7,2723.3,0.001]
[1763818516699,0.4989,2723.4,2723.3,0.001]
[1763818517210,0.9517,2723.4,2723.3,0.001]
[1763818520506,0.5768,2723.7,2723.3,0.001]
[1763818520911,0.4528,2723.6,2723.3,0.001]
[1763818521524,0.4989,2723.4,2723.3,0.001]
[1763818521677,0.4528,2723.6,2723.3,0.001]
[1763818522021,0.1965,2723.8,2723.3,0.001]
[1763818522174,0.124,2723.7,2723.5,4.71567355]
[1763818522378,0.124,2723.7,2723.6,3.6716111]
[1763818522802,1.0757,2723.7,2723.6,3.6716111]
[1763818523213,1.0757,2723.7,2723.3,0.001]
[1763818523379,0.124,2723.7,2723.3,3.67301047]
[1763818523920,0.124,2723.7,2723.3,7.34502603]
[1763818524121,0.124,2723.7,2723.3,3.67301047]
[1763818524282,0.5768,2723.7,2723.3,3.67301047]
[1763818524483,0.5768,2723.7,2723.3,0.90799264]
[1763818524919,0.4528,2723.6,2723.3,0.90799264]
[1763818525290,0.124,2723.7,2723.3,0.90799264]
[1763818525602,0.124,2723.7,2723.5,4.71567355]
[1763818526313,0.9517,2723.6,2723.3,0.90799264]
[1763818526494,0.4528,2723.5,2723.4,3.67188073]
[1763818526895,0.9517,2723.5,2723.4,3.67188073]
[1763818527094,0.9517,2723.5,2723.3,0.001]
[1763818527318,0.9517,2723.4,2723.3,0.001]
[1763818529282,0.4989,2723.4,2723.3,0.001]
[1763818529487,0.6229,2723.4,2723.3,0.001]
[1763818529698,0.4528,2723.6,2723.3,0.001]
[1763818529898,0.124,2723.5,2723.3,0.001]
[1763818530519,0.124,2723.5,2723.3,7.38175127]
[1763818530719,0.124,2723.5,2723.3,7.34503112]
[1763818531482,0.9517,2723.4,2723.3,0.90799264]
[1763818532883,0.9517,2723.4,2723.3,4.5800082]
[1763818533214,0.9517,2723.4,2723.3,0.90799264]
[1763818533419,0.9517,2723.4,2723.3,0.001]
[1763818537334,0.9517,2723.4,2723.0,0.001]
[1763818537539,0.4619,2723.1,2723.0,0.001]
[1763818537926,0.9523,2723.1,2723.0,0.001]
[1763818538125,0.4619,2723.1,2723.0,0.001]
[1763818538538,0.9523,2723.1,2723.0,0.001]
[1763818539829,0.124,2723.5,2723.0,0.001]
[1763818540018,0.4904,2723.4,2723.0,0.001]
[1763818540416,0.4619,2723.1,2723.0,0.001]
[1763818541644,0.9523,2723.1,2723.0,0.001]
[1763818543960,1.0763,2723.1,2723.0,0.001]
[1763818549196,1.481804,2723.1,2723.0,0.001]
[1763818558006,1.82524488,2723.1,2723.0,0.001]
[1763818560494,1.357804,2723.0,2722.7,0.001]
[1763818560691,0.988804,2722.8,2722.7,0.001]
[1763818560897,1.33224488,2722.8,2722.7,0.001]
[1763818561218,1.82264488,2722.8,2722.7,0.001]
[1763818561717,1.94664488,2722.8,2722.7,0.001]
[1763818561916,2.14130937,2722.8,2722.7,0.001]
[1763818565085,3.04830201,2722.8,2722.7,0.001]
[1763818566027,0.881304,2722.5,2721.5,0.001]
[1763818566339,0.881304,2721.6,2721.5,0.001]
[1763818566483,1.005304,2721.6,2721.5,0.001]
[1763818566685,1.504004,2721.6,2721.5,0.001]
[1763818571608,1.84605236,2721.6,2721.5,0.001]
[1763818571852,2.0766086,2721.6,2721.5,0.001]
[1763818574238,7.61704124,2721.6,2721.5,0.001]
[1763818574798,6.299548,2721.4,2721.3,0.001]
[1763818574915,3.86650264,2721.3,2721.2,0.001]
[1763818575113,5.307051,2721.3,2721.2,0.001]
[1763818575352,5.5700521,2721.3,2721.2,0.001]
[1763818575533,5.4848091,2721.3,2721.2,0.001]
[1763818575708,3.2837501,2721.3,2721.2,0.001]
[1763818575912,5.4848091,2721.3,2721.2,0.001]
[1763818576446,3.2837501,2721.3,2721.2,0.001]
[1763818577721,6.9597861,2721.3,2721.2,0.001]
[1763818577927,6.71606214,2721.3,2721.2,0.001]
[1763818578531,7.29277982,2721.3,2721.2,0.001]
[1763818578719,7.29277982,2721.3,2721.0,0.001]
[1763818578720,16.882725,2721.1,2721.0,0.001]
[1763818579052,18.62202055,2721.1,2721.0,0.001]
[1763818579348,19.12072055,2721.1,2721.0,0.001]
[1763818579554,18.52072055,2721.1,2721.0,0.001]
[1763818579870,18.52072055,2721.1,2720.2,0.001]
[1763818579871,1.31249664,2720.7,2720.2,0.001]
[1763818580023,1.059404,2720.5,2720.2,0.001]
[1763818580225,1.40145236,2720.5,2720.2,0.001]
[1763818580454,1.90015236,2720.5,2720.2,0.001]
[1763818582726,1.558104,2720.5,2720.2,0.001]
[1763818582971,0.181,2720.7,2720.2,0.001]
[1763818583182,0.124,2720.6,2720.2,0.001]
[1763818583470,0.881304,2720.5,2720.2,0.001]
[1763818583759,1.380004,2720.5,2720.2,0.001]
[1763818583952,4.62335664,2720.5,2720.2,0.001]
[1763818584259,2.7798323,2720.5,2720.2,0.001]
[1763818584757,4.8423383,2720.5,2720.2,0.001]
[1763818585257,5.183013,2720.5,2720.2,0.001]
[1763818585456,3.120507,2720.5,2720.2,0.001]
[1763818585864,5.165852,2720.5,2720.2,0.001]
[1763818586548,6.584013,2720.5,2720.2,0.001]
[1763818586861,0.96863566,2720.5,2720.2,0.001]
[1763818587076,0.5998,2720.5,2720.2,0.001]
[1763818587429,1.005304,2720.5,2720.2,0.001]
[1763818587630,0.5998,2720.5,2720.2,0.001]
[1763818587970,1.005304,2720.5,2720.2,0.001]
[1763818588140,1.504004,2720.5,2720.2,0.001]
[1763818588651,1.8451376,2720.5,2720.2,0.001]
[1763818588848,2.04775136,2720.5,2720.2,0.001]
[1763818589024,2.04773457,2720.5,2720.2,0.001]
[1763818590332,5.21433321,2720.5,2720.2,0.001]
[1763818590731,2.95472721,2720.5,2720.2,0.001]
[1763818591266,5.53363321,2720.5,2720.2,0.001]
[1763818591565,2.95472721,2720.5,2720.2,0.001]
[1763818594161,4.98048721,2720.5,2720.2,0.001]
[1763818594465,2.95472721,2720.5,2720.2,0.001]
[1763818595662,2.93312721,2720.5,2720.2,0.001]
[1763818597366,5.33059621,2720.5,2720.2,0.001]
[1763818597971,5.90743466,2720.5,2720.2,0.001]
[1763818598171,5.33059621,2720.5,2720.2,0.001]
[1763818598374,8.14397221,2720.5,2720.2,0.001]
[1763818598582,5.47321321,2720.5,2720.2,0.001]
[1763818599468,9.29725821,2720.5,2720.2,0.001]
[1763818600441,10.50445821,2720.5,2720.2,0.001]
[1763818600868,9.50445821,2720.5,2720.2,0.001]
[1763818601095,8.43357321,2720.5,2720.2,0.001]
[1763818601580,10.03454221,2720.5,2720.2,0.001]
[1763818602478,11.49757021,2720.5,2720.2,0.001]
[1763818602640,11.10115321,2720.5,2720.2,0.001]
[1763818603050,11.99467306,2720.5,2720.2,0.001]
[1763818603270,11.56066325,2720.5,2720.4,8.89e-05]
[1763818603475,26.21805425,2720.5,2720.4,8.89e-05]
[1763818604386,14.90771021,2720.5,2720.4,8.89e-05]
[1763818604582,17.19671521,2720.5,2720.4,8.89e-05]
[1763818605465,2.93312721,2720.5,2720.4,8.89e-05]
[1763818605697,17.67126729,2720.5,2720.4,8.89e-05]
[1763818606002,14.26969529,2720.5,2720.4,8.89e-05]
[1763818606768,27.61666529,2720.5,2720.4,8.89e-05]
[1763818607466,26.30143464,2720.4,2720.2,0.001]
[1763818607669,31.86712604,2720.4,2720.2,0.001]
[1763818607867,26.67360504,2720.4,2720.2,0.001]
[1763818608512,27.10761485,2720.4,2720.3,9.085e-05]
[1763818608668,36.28663385,2720.4,2720.3,9.085e-05]
[1763818609420,26.30143464,2719.9,2719.8,0.001]
[1763818609699,32.90455751,2719.9,2719.8,0.001]
[1763818609900,33.39655751,2719.9,2719.8,0.001]
[1763818610103,33.39655751,2719.9,2717.0,8.68769358]
[1763818610104,0.405504,2719.6,2717.0,5.00719602]
[1763818610405,0.90699264,2719.1,2718.3,0.1041]
[1763818610564,1.31249664,2718.8,2717.0,0.1041]
[1763818610764,0.405504,2718.6,2717.0,0.1041]
[1763818610977,0.46662084,2718.7,2717.0,0.1041]
[1763818610978,0.405504,2718.4,2717.1,0.1041]
[1763818611188,0.405504,2718.2,2717.1,0.1041]
[1763818611577,0.405504,2718.0,2717.1,0.1041]
[1763818611766,0.405504,2717.8,2717.0,0.1041]
[1763818611965,0.405504,2717.8,2717.0,0.2082]
[1763818612173,0.74812484,2717.8,2717.0,0.2082]
[1763818612482,0.74812484,2717.8,2717.1,0.1041]
[1763818613519,0.74812484,2717.8,2717.0,0.1041]
[1763818613700,0.405504,2717.6,2717.2,0.1041]
[1763818613873,0.405504,2718.0,2717.2,0.1041]
[1763818614072,1.15362884,2717.7,2717.6,0.1041]
[1763818614273,0.405504,2717.6,2717.0,0.2082]
[1763818614688,0.124,2717.7,2717.1,0.1041]
[1763818614689,0.27152063,2717.7,2717.1,0.1041]
[1763818614892,0.405504,2717.6,2717.0,0.1041]
[1763818615513,0.897504,2717.6,2717.0,0.1041]
[1763818616230,0.405504,2717.4,2717.0,0.2082]
[1763818616526,0.14752063,2717.7,2717.5,0.1041]
[1763818616727,0.14752063,2717.7,2717.6,0.1041]
[1763818617004,0.27152063,2717.7,2717.6,0.2082]
[1763818617204,0.124,2717.7,2717.6,0.2082]
[1763818617607,0.57732309,2718.1,2717.6,0.2082]
[1763818617911,0.57732309,2718.1,2718.0,0.1041]
[1763818618077,0.70132309,2718.1,2718.0,0.1041]
[1763818618409,0.70132309,2718.1,2718.0,0.2082]
[1763818618576,0.70132309,2718.1,2718.0,0.1041]
[1763818618780,0.70132309,2718.1,2718.0,0.2082]
[1763818618781,1.10682709,2718.1,2718.0,0.2082]
[1763818619815,0.492,2719.5,2718.0,0.2082]
[1763818620030,0.492,2719.5,2717.0,0.1041]
[1763818620031,0.57720189,2718.9,2718.1,0.1041]
[1763818620174,0.46439941,2718.8,2717.6,0.1041]
[1763818620373,2.959264,2718.7,2717.6,0.1041]
[1763818620574,0.405504,2718.5,2717.0,0.1041]
[1763818620826,0.74595427,2718.5,2717.3,0.1041]
[1763818620975,1.31249664,2718.3,2717.3,0.1041]
[1763818621175,0.405504,2718.1,2717.3,0.1041]
[1763818622494,0.405504,2717.9,2717.0,0.2082]
[1763818622694,0.405504,2717.9,2717.0,0.1041]
[1763818622916,0.405504,2717.7,2717.0,0.1051]
[1763818623082,0.405504,2717.5,2717.0,0.1051]
[1763818623615,0.405504,2717.5,2717.0,0.2092]
[1763818623831,0.405504,2717.5,2717.0,0.1051]
[1763818623832,0.897504,2717.5,2717.0,0.1051]
[1763818624200,0.4897,2717.1,2717.0,0.001]
[1763818624441,0.529504,2717.1,2717.0,0.001]
[1763818625741,1.003504,2717.1,2717.0,0.001]
[1763818626123,0.529504,2717.1,2717.0,0.001]
[1763818627148,0.529504,2717.1,2717.0,0.1051]
[1763818627449,0.529504,2717.1,2717.0,0.2092]
[1763818629139,0.529504,2717.1,2717.0,0.1051]
[1763818630406,0.529504,2717.1,2717.0,0.2092]
[1763818630607,0.529504,2717.1,2717.0,0.1051]
[1763818631213,0.529504,2717.1,2717.0,0.001]
[1763818631943,0.529504,2717.1,2717.0,0.1051]
[1763818633552,1.003504,2717.1,2717.0,0.001]
[1763818633847,1.477204,2717.1,2717.0,0.001]
[1763818634049,20.80645446,2717.1,2717.0,0.001]
[1763818634221,20.76236955,2717.1,2717.0,0.001]
[1763818634421,17.95096655,2717.1,2717.0,0.001]
[1763818634621,14.30887655,2717.1,2717.0,0.001]
[1763818635152,8.39990655,2717.1,2717.0,0.001]
[1763818635340,5.5536651,2717.1,2717.0,0.001]
[1763818635648,5.70124887,2717.1,2717.0,0.001]
[1763818635852,5.07694887,2717.1,2717.0,0.001]
[1763818636053,2.39885887,2717.1,2717.0,0.001]
[1763818636456,1.2477711,2717.1,2717.0,0.001]
[1763818636753,1.03099264,2717.1,2717.0,0.001]
[1763818637056,0.5775336,2717.1,2717.0,0.1051]
[1763818637241,0.124,2717.1,2717.0,0.1051]
[1763818638457,0.3417792,2717.4,2717.0,0.2092]
[1763818638633,0.3417792,2717.7,2717.3,0.1041]
[1763818638846,0.124,2717.6,2717.3,0.1041]
[1763818639046,0.124,2717.6,2717.0,0.001]
[1763818639252,0.405504,2717.5,2717.0,0.001]
[1763818639650,0.405504,2717.5,2717.0,0.1051]
[1763818639981,0.53383549,2718.3,2717.0,0.1051]
[1763818639982,0.1919,2718.4,2717.4,0.1041]
[1763818640147,0.125,2718.1,2717.5,0.1041]
[1763818640345,0.4737,2718.7,2718.1,0.1041]
[1763818640346,0.3425451,2718.2,2718.1,0.1041]
[1763818640536,0.125,2718.2,2717.2,4.74647161]
[1763818640738,0.125,2718.2,2717.3,0.1041]
[1763818641487,0.4675451,2718.2,2717.3,0.1041]
[1763818641648,0.3425451,2718.1,2717.3,0.1041]
[1763818641972,0.7480491,2718.1,2717.3,0.1041]
[1763818642735,0.7480491,2718.1,2717.0,0.001]
[1763818642736,1.2217491,2718.1,2717.1,0.1041]
[1763818642941,0.405504,2717.9,2717.1,0.1041]
[1763818643568,0.597404,2717.9,2717.1,0.1041]
[1763818643787,0.405504,2717.7,2717.1,0.1041]
[1763818643988,0.405504,2717.5,2717.1,0.1041]
[1763818644387,0.405504,2717.5,2717.0,0.001]
[1763818644707,1.22175633,2717.5,2717.0,0.001]
[1763818644840,0.405504,2717.3,2717.0,0.001]
[1763818645041,0.474,2717.1,2717.0,0.001]
[1763818645273,1.004504,2717.1,2717.0,0.001]
[1763818645459,1.34705633,2717.1,2717.0,0.001]
[1763818645861,0.87305633,2717.1,2717.0,0.001]
[1763818646054,1.34705633,2717.1,2717.0,0.001]
[1763818646281,1.82075633,2717.1,2717.0,0.001]
[1763818647384,5.81764897,2717.1,2717.0,0.001]
[1763818647680,3.30951387,2717.1,2717.0,0.001]
[1763818647840,2.72774897,2717.1,2717.0,0.001]
[1763818648173,5.67333697,2717.1,2717.0,0.001]
[1763818648386,2.12904897,2717.1,2717.0,0.001]
[1763818648564,1.65504897,2717.1,2717.0,0.001]
[1763818648879,1.78004897,2717.1,2717.0,0.001]
[1763818649285,0.62122988,2717.9,2717.0,0.2092]
[1763818649585,0.4676521,2717.8,2717.0,0.1051]
[1763818649778,0.3426521,2717.7,2717.0,0.1051]
[1763818650577,0.405504,2717.7,2717.0,0.2092]
[1763818650766,0.405504,2717.7,2717.1,0.1041]
[1763818650969,0.405504,2717.5,2717.1,0.1041]
[1763818651166,0.3426521,2717.5,2717.1,0.1041]
[1763818651346,0.6656,2718.3,2717.4,0.1041]
[1763818651548,0.46697421,2718.2,2717.5,0.1041]
[1763818651775,0.34197421,2718.1,2717.5,0.1041]
[1763818652087,0.405504,2718.0,2717.5,0.1041]
[1763818652458,0.405504,2717.8,2717.1,0.1041]
[1763818652781,0.405504,2717.6,2717.1,0.1041]
[1763818655279,0.405504,2717.6,2717.0,0.001]
[1763818655688,0.405504,2717.6,2717.0,0.1051]
[1763818656852,0.405504,2717.6,2717.5,0.1041]
[1763818659945,0.1919,2718.3,2717.5,0.2082]
[1763818660279,0.125,2718.2,2717.6,0.1041]
[1763818660455,0.6212,2718.2,2717.6,0.1041]
[1763818660786,0.74730367,2718.1,2717.3,0.1041]
[1763818660982,0.48929528,2718.1,2717.3,0.1041]
[1763818661145,0.14749561,2718.1,2718.0,0.1041]
[1763818661780,0.405504,2718.1,2718.0,0.1041]
[1763818662394,0.125,2718.2,2718.0,0.2082]
[1763818662701,0.125,2718.2,2717.1,4.74647161]
[1763818662702,0.125,2718.2,2718.1,0.1041]
[1763818662878,0.530504,2718.2,2718.1,0.1041]
[1763818663590,0.530504,2718.2,2717.7,0.1041]
[1763818663591,0.405504,2718.1,2717.7,0.1041]
[1763818663776,0.125,2718.2,2718.1,0.1041]
[1763818664548,0.70234438,2718.2,2718.1,0.1041]
[1763818665129,0.124,2718.2,2718.1,0.2082]
[1763818666304,0.124,2718.2,2718.1,0.17795099]
[1763818666881,0.124,2718.2,2718.1,0.14775099]
[1763818669388,0.124,2718.2,2718.1,0.07385099]
[1763818669712,0.124,2718.2,2717.6,0.0739]
[1763818670478,0.6202,2718.2,2717.6,0.0739]
[1763818671771,1.025704,2718.2,2718.1,0.0739]
[1763818671974,1.025704,2718.2,2717.6,0.0739]
[1763818672304,0.405504,2718.1,2717.6,0.0739]
[1763818672498,0.405504,2718.1,2717.3,0.0739]
[1763818672717,0.405504,2718.1,2717.1,8.42679929]
[1763818672718,0.405504,2718.1,2718.0,0.0739]
[1763818673997,0.124,2718.2,2718.0,0.0739]
[1763818674413,0.124,2718.2,2718.1,0.0739]
[1763818674621,0.405504,2718.1,2717.3,0.0739]
[1763818674823,0.405504,2718.1,2717.4,0.0739]
[1763818675020,0.405504,2718.1,2718.0,0.001]
[1763818675230,0.407504,2718.1,2718.0,0.001]
[1763818676825,0.407504,2718.1,2718.0,0.0749]
[1763818677025,0.407504,2718.1,2718.0,0.001]
[1763818677829,0.860004,2718.1,2718.0,0.001]
[1763818678725,0.407504,2718.1,2718.0,0.001]
[1763818678897,0.407504,2718.1,2718.0,0.0749]
[1763818680347,0.407504,2718.1,2718.0,0.001]
[1763818680860,1.356204,2718.1,2718.0,0.001]
[1763818681024,1.69812326,2718.1,2718.0,0.001]
[1763818682550,1.20192326,2718.1,2718.0,0.001]
[1763818683315,0.74942326,2718.1,2718.0,0.001]
[1763818683516,0.5785,2718.1,2718.0,0.001]
[1763818684112,1.480204,2718.1,2718.0,0.001]
[1763818684416,2.01103748,2718.1,2718.0,0.001]
[1763818685036,6.50731012,2718.1,2718.0,0.001]
[1763818685240,6.18481112,2718.1,2718.0,0.001]
[1763818685447,5.16547012,2718.1,2718.0,0.001]
[1763818686036,2.91803012,2718.1,2718.0,0.001]
[1763818687055,5.97189012,2718.1,2718.0,0.001]
[1763818687525,2.91803012,2718.1,2718.0,0.001]
[1763818688054,2.42183012,2718.1,2718.0,0.001]
[1763818688228,2.01632612,2718.1,2718.0,0.001]
[1763818688444,1.37525532,2718.1,2718.0,0.0749]
[1763818688952,1.37525532,2718.1,2718.0,0.001]
[1763818689138,1.78075932,2718.1,2718.0,0.0749]
[1763818689456,0.34426268,2718.1,2718.0,0.0749]
[1763818689656,0.126,2718.1,2718.0,0.1488]
[1763818691758,0.126,2718.1,2718.0,0.0749]
[1763818693436,0.126,2718.1,2718.0,0.1488]
[1763818695027,0.998204,2718.1,2718.0,0.001]
[1763818696285,1.474104,2718.1,2718.0,0.001]
[1763818698187,1.81628758,2718.1,2718.0,0.001]
[1763818698367,1.34038758,2718.1,2718.0,0.001]
[1763818698942,0.87368758,2718.1,2718.0,0.0749]
[1763818699378,0.126,2718.1,2718.0,0.0749]
[1763818700647,0.126,2718.1,2718.0,0.001]
[1763818700648,0.5927,2718.1,2718.0,0.001]
[1763818700873,1.81651478,2718.1,2718.0,0.001]
[1763818701935,1.34061478,2718.1,2718.0,0.001]
[1763818702139,0.002,2718.1,2718.0,0.1488]
[1763818702384,0.126,2718.1,2718.0,0.1488]
[1763818702742,0.126,2718.1,2718.0,0.0749]
[1763818703542,0.126,2718.1,2718.0,0.1488]
[1763818704001,0.002,2718.1,2718.0,0.1488]
[1763818704157,0.126,2718.1,2718.0,0.1488]